[Event "23rd Alekhine Master 2019"]
[Site "Voronezh"]
[Date "2019.06.18"]
[Round "6.3"]
[White "Meshkovs, Nikita"]
[Black "Ruiz Castillo, Joshua Daniel"]
[Result "1/2-1/2"]
[ECO "A40"]
[WhiteElo "2550"]
[BlackElo "2472"]
[Annotator "ChessBase"]
[PlyCount "222"]
[EventDate "2019.06.12"]
[EventType "swiss"]
[EventCountry "RUS"]
[SourceTitle "playchess.com"]
[Source "ChessBase"]
[SourceQuality "1"]
[TimeControl "40/5400+30:1800+30"]

1. d4 {[%emt 0:00:00]} Nf6 {[%emt 0:00:00]} 2. c4 {[%emt 0:00:00]} e6 {[%emt 0:00:00]} 3. g3 {[%emt 0:00:00]} d5 {[%emt 0:00:00]} 4. Nf3 {[%emt 0:00:26]} Bb4+ {[%emt 0:00:00]} 5. Bd2 {[%emt 0:00:08]} Be7 {[%emt 0:00:00]} 6. Bg2 {[%emt 0:00:08]} O-O {[%emt 0:00:06]} 7. O-O {[%emt 0:00:07]} Nbd7 {[%emt 0:00:11]} 8. Qb3 {[%emt 0:00:08]} c6 {[%emt 0:02:24]} 9. Bf4 {[%emt 0:00:12]} Ne4 {[%emt 0:07:26]} 10. h4 {[%emt 0:00:21]} h6 {[%emt 0:02:14]} 11. Nfd2 {[%emt 0:33:50]} g5 {[%emt 0:04:08]} 12. hxg5 {[%emt 0:07:25]} hxg5 {[%emt 0:00:04]} 13. cxd5 {[%emt 0:03:09]} gxf4 {[%emt 0:06:47]} 14. Bxe4 {[%emt 0:00:09]} exd5 {[%emt 0:02:01]} 15. Bc2 {[%emt 0:00:26]} f5 {[%emt 0:03:49]} 16. Qf3 {[%emt 0:06:02]} Bd6 {[%emt 0:02:06]} 17. Qh5 {[%emt 0:00:52]} Qf6 {[%emt 0:01:45]} 18. Nf3 {[%emt 0:01:49]} Rf7 {[%emt 0:04:05]} 19. Kg2 {[%emt 0:11:02]} Rh7 {[%emt 0:00:07]} 20. Qxf5 {[%emt 0:02:38]} Rg7 {[%emt 0:00:04]} 21. Qxf6 {[%emt 0:04:42]} Nxf6 {[%emt 0:00:01]} 22. Ne5 {[%emt 0:00:08]} Bxe5 {[%emt 0:03:00]} 23. dxe5 {[%emt 0:00:03]} Ng4 {[%emt 0:00:06]} 24. Rc1 {[%emt 0:07:21]} fxg3 {[%emt 0:00:43]} 25. fxg3 {[%emt 0:02:11]} Rf7 {[%emt 0:01:12]} 26. Bd3 {[%emt 0:01:34]} Bf5 {[%emt 0:08:20]} 27. Nc3 {[%emt 0:11:51]} d4 {[%emt 0:09:24]} 28. Nd1 {[%emt 0:00:53]} Bxd3 {[%emt 0:07:31]} 29. exd3 {[%emt 0:00:02]} Nxe5 {[%emt 0:00:04]} 30. Nf2 {[%emt 0:01:46]} Raf8 {[%emt 0:00:04]} 31. Rc2 {[%emt 0:00:35]} Rf3 {[%emt 0:00:33]} 32. Rh1 {[%emt 0:02:53]} Nxd3 {[%emt 0:01:27]} 33. Nxd3 {[%emt 0:00:16]} Rxd3 {[%emt 0:00:02]} 34. Rh4 {[%emt 0:00:12]} Rf5 {[%emt 0:03:02]} 35. Re4 {[%emt 0:02:13]} c5 {[%emt 0:02:10]} 36. g4 {[%emt 0:00:57]} Rg5 {[%emt 0:02:41]} 37. b3 {[%emt 0:00:51]} b5 {[%emt 0:01:37]} 38. b4 {[%emt 0:01:08]} Rc3 {[%emt 0:00:44]} 39. Rd2 {[%emt 0:00:29]} d3 {[%emt 0:00:04]} 40. Kf3 {[%emt 0:00:00]} c4 {[%emt 0:00:00]} 41. Kf4 {[%emt 0:07:05]} Rg7 {[%emt 0:12:35]} 42. Re1 {[%emt 0:04:08]} Rf7+ {[%emt 0:03:05]} 43. Kg5 {[%emt 0:01:18]} Kg7 {[%emt 0:00:09]} 44. Rh2 {[%emt 0:01:01]} Rc2 {[%emt 0:00:21]} 45. Rxc2 {[%emt 0:00:14]} dxc2 {[%emt 0:00:01]} 46. Rc1 {[%emt 0:00:07]} Rf2 {[%emt 0:00:04]} 47. Kh4 {[%emt 0:00:06]} Kf6 {[%emt 0:00:51]} 48. Kg3 {[%emt 0:00:08]} Rd2 {[%emt 0:00:08]} 49. Kf4 {[%emt 0:00:02]} Rd4+ {[%emt 0:02:28]} 50. Kf3 {[%emt 0:00:49]} Ke5 {[%emt 0:00:06]} 51. Rxc2 {[%emt 0:04:55]} Rd3+ {[%emt 0:01:16]} 52. Kf2 {[%emt 0:00:50]} Kf4 {[%emt 0:00:42]} 53. Ke1 {[%emt 0:02:06]} Kxg4 {[%emt 0:00:26]} 54. Rf2 {[%emt 0:02:05]} a6 55. Ke2 {[%emt 0:01:36]} Kg3 {[%emt 0:04:10]} 56. Rf1 {[%emt 0:00:26]} Ra3 {[%emt 0:01:10]} 57. Ra1 {[%emt 0:00:01]} Rd3 {[%emt 0:00:36]} 58. Rf1 {[%emt 0:00:23]} Kg4 {[%emt 0:00:07]} 59. Rf2 {[%emt 0:00:13]} Ra3 {[%emt 0:00:09]} 60. Kd1 {[%emt 0:00:06]} Kg3 {[%emt 0:00:48]} 61. Rd2 {[%emt 0:01:15]} Kf3 {[%emt 0:01:14]} 62. Kc1 {[%emt 0:00:12]} Ra4 {[%emt 0:00:40]} 63. Rh2 {[%emt 0:09:53]} Rxb4 {[%emt 0:00:21]} 64. Rh3+ {[%emt 0:00:04]} Ke4 {[%emt 0:00:11]} 65. Kc2 {[%emt 0:00:59]} Ke5 {[%emt 0:17:10]} 66. Rh5+ {[%emt 0:00:27]} Kf4 {[%emt 0:03:30]} 67. Rh3 {[%emt 0:00:02]} Kg4 {[%emt 0:00:04]} 68. Ra3 {[%emt 0:00:16]} Kf4 {[%emt 0:01:03]} 69. Rxa6 {[%emt 0:00:16]} Ke4 {[%emt 0:00:10]} 70. Ra8 {[%emt 0:00:49]} Ra4 {[%emt 0:00:27]} 71. Re8+ {[%emt 0:01:40]} Kd4 {[%emt 0:00:06]} 72. Kb2 {[%emt 0:02:45]} Ra7 {[%emt 0:00:01]} 73. Rd8+ {[%emt 0:00:11]} Kc5 {[%emt 0:00:05]} 74. a3 {[%emt 0:00:07]} Rh7 {[%emt 0:00:13]} 75. Rc8+ {[%emt 0:00:01]} Kd5 {[%emt 0:00:16]} 76. Rd8+ {[%emt 0:00:09]} Kc6 {[%emt 0:00:05]} 77. Rc8+ {[%emt 0:00:06]} Kb7 {[%emt 0:00:03]} 78. Rg8 {[%emt 0:00:51]} Rh2+ {[%emt 0:00:06]} 79. Kb1 {[%emt 0:00:17]} Kb6 {[%emt 0:00:25]} 80. Rc8 {[%emt 0:00:19]} Kb7 {[%emt 0:00:14]} 81. Rc5 {[%emt 0:00:07]} Kb6 {[%emt 0:00:32]} 82. Rc8 {[%emt 0:00:02]} Rg2 {[%emt 0:01:51]} 83. Ka1 {[%emt 0:00:12]} Rg6 {[%emt 0:00:16]} 84. Kb2 {[%emt 0:00:18]} Rg2+ {[%emt 0:00:14]} 85. Ka1 {[%emt 0:00:05]} Rg5 {[%emt 0:00:03]} 86. Kb2 Kb7 87. Rh8 {[%emt 0:00:20]} Rg2+ {[%emt 0:00:02]} 88. Kb1 {[%emt 0:01:23]} Kc6 {[%emt 0:00:03]} 89. Rh5 Kb6 {[%emt 0:00:53]} 90. Rh8 {[%emt 0:01:01]} Kc5 {[%emt 0:00:15]} 91. Rh5+ {[%emt 0:02:41]} Kd4 {[%emt 0:00:06]} 92. Rxb5 {[%emt 0:00:01]} Kd3 {[%emt 0:00:28]} 93. Rd5+ {[%emt 0:01:06]} Kc3 {[%emt 0:00:01]} 94. Rh5 {[%emt 0:00:08]} Rg1+ {[%emt 0:00:04]} 95. Ka2 {[%emt 0:00:02]} Re1 {[%emt 0:00:20]} 96. a4 {[%emt 0:01:37]} Re2+ {[%emt 0:00:18]} 97. Kb1 {[%emt 0:00:19]} Kb3 {[%emt 0:01:30]} 98. Rb5+ {[%emt 0:00:03]} Kxa4 {[%emt 0:00:07]} 99. Rb8 {[%emt 0:00:05]} Ka5 {[%emt 0:00:08]} 100. Kc1 {[%emt 0:00:07]} Re5 {[%emt 0:00:06]} 101. Kc2 {[%emt 0:00:04]} Rb5 {[%emt 0:00:00]} 102. Rxb5+ {[%emt 0:00:22]} Kxb5 {[%emt 0:00:02]} 103. Kc3 {[%emt 0:00:06]} Kc5 {[%emt 0:00:03]} 104. Kc2 {[%emt 0:00:04]} Kd4 {[%emt 0:00:02]} 105. Kd2 {[%emt 0:00:04]} c3+ {[%emt 0:00:02]} 106. Kc2 {[%emt 0:00:06]} Kc4 {[%emt 0:00:02]} 107. Kc1 {[%emt 0:00:06]} Kd4 {[%emt 0:00:02]} 108. Kc2 {[%emt 0:00:06]} Kc4 {[%emt 0:00:01]} 109. Kc1 {[%emt 0:00:07]} Kd3 {[%emt 0:00:03]} 110. Kd1 {[%emt 0:00:06]} c2+ {[%emt 0:00:01]} 111. Kc1 {[%emt 0:00:06]} Kc3 {[%emt 0:00:02]} 1/2-1/2

[Event "23rd Alekhine Master 2019"]
[Site "Voronezh"]
[Date "2019.06.18"]
[Round "6.4"]
[White "Zakhartsov, Vladimir"]
[Black "Svetushkin, Dmitry"]
[Result "1/2-1/2"]
[ECO "E10"]
[WhiteElo "2480"]
[BlackElo "2532"]
[Annotator "ChessBase"]
[PlyCount "104"]
[EventDate "2019.06.12"]
[EventType "swiss"]
[EventCountry "RUS"]
[SourceTitle "playchess.com"]
[Source "ChessBase"]
[SourceQuality "1"]
[TimeControl "40/5400+30:1800+30"]

1. d4 {[%emt 0:02:11]} Nf6 {[%emt 0:00:00]} 2. c4 {[%emt 0:00:26]} e6 {[%emt 0:00:00]} 3. Nf3 {[%emt 0:00:25]} a6 {[%emt 0:00:00]} 4. Nc3 {[%emt 0:04:24]} d5 {[%emt 0:00:06]} 5. cxd5 {[%emt 0:00:25]} exd5 {[%emt 0:00:07]} 6. Bg5 {[%emt 0:01:37]} Be6 {[%emt 0:00:11]} 7. Qb3 {[%emt 0:02:24]} Nbd7 {[%emt 0:02:46]} 8. Qxb7 {[%emt 0:11:43]} Rb8 {[%emt 0:00:27]} 9. Qc6 {[%emt 0:01:53]} Rxb2 {[%emt 0:02:24]} 10. Na4 {[%emt 0:10:15]} Rb8 {[%emt 0:07:43]} 11. a3 {[%emt 0:11:54]} Bd6 {[%emt 0:08:54]} 12. e3 {[%emt 0:00:30]} O-O {[%emt 0:06:50]} 13. Bxa6 {[%emt 0:04:02]} h6 {[%emt 0:01:05]} 14. Bh4 {[%emt 0:04:49]} g5 {[%emt 0:27:30]} 15. Bg3 {[%emt 0:00:06]} Ne4 {[%emt 0:00:02]} 16. Bd3 {[%emt 0:03:05]} Nxg3 {[%emt 0:08:33]} 17. hxg3 {[%emt 0:00:24]} Kg7 {[%emt 0:00:25]} 18. Bc2 {[%emt 0:08:41]} Qf6 {[%emt 0:02:26]} 19. Qc3 {[%emt 0:01:20]} Rfc8 {[%emt 0:03:59]} 20. Qd3 {[%emt 0:01:15]} Rh8 {[%emt 0:01:35]} 21. Nc3 {[%emt 0:01:16]} c5 {[%emt 0:00:31]} 22. O-O {[%emt 0:02:06]} Rbc8 {[%emt 0:03:42]} 23. dxc5 {[%emt 0:03:58]} Ne5 {[%emt 0:03:13]} 24. Nxd5 {[%emt 0:00:27]} Nxf3+ {[%emt 0:10:46]} 25. gxf3 {[%emt 0:00:02]} Bxd5 {[%emt 0:00:45]} 26. Qxd5 {[%emt 0:00:07]} Rxc5 {[%emt 0:00:01]} 27. Qe4 {[%emt 0:00:31]} h5 {[%emt 0:00:09]} 28. Rad1 {[%emt 0:05:59]} h4 {[%emt 0:01:17]} 29. Kg2 {[%emt 0:01:25]} hxg3 {[%emt 0:02:36]} 30. fxg3 {[%emt 0:00:17]} Re5 {[%emt 0:04:21]} 31. Qd3 {[%emt 0:06:31]} Qe6 {[%emt 0:00:04]} 32. Rh1 {[%emt 0:00:10]} Rxh1 {[%emt 0:00:22]} 33. Rxh1 {[%emt 0:00:14]} Rxe3 {[%emt 0:00:09]} 34. Qd4+ {[%emt 0:03:27]} Qe5 {[%emt 0:01:31]} 35. Qxe5+ {[%emt 0:01:41]} Bxe5 {[%emt 0:00:09]} 36. Rf1 {[%emt 0:00:24]} Rxa3 {[%emt 0:00:33]} 37. Rf2 {[%emt 0:00:18]} Bd4 {[%emt 0:00:20]} 38. Re2 {[%emt 0:00:08]} Be3 {[%emt 0:00:05]} 39. Be4 {[%emt 0:00:23]} Kf6 {[%emt 0:00:03]} 40. Rc2 {[%emt 0:00:00]} Ke6 {[%emt 0:00:00]} 41. g4 {[%emt 0:00:38]} Ke5 {[%emt 0:01:36]} 42. Bf5 {[%emt 0:00:20]} f6 {[%emt 0:00:41]} 43. Be4 {[%emt 0:02:23]} Kf4 {[%emt 0:00:27]} 44. Bf5 {[%emt 0:03:58]} Ke5 {[%emt 0:02:34]} 45. Be4 {[%emt 0:00:35]} Kd4 {[%emt 0:00:20]} 46. Re2 {[%emt 0:00:34]} Bf4 {[%emt 0:00:38]} 47. Bf5 {[%emt 0:00:44]} Ra8 {[%emt 0:00:17]} 48. Be4 {[%emt 0:00:53]} Rd8 {[%emt 0:01:36]} 49. Bf5 {[%emt 0:00:26]} Kc3 {[%emt 0:00:07]} 50. Rc2+ {[%emt 0:00:07]} Kb3 {[%emt 0:00:04]} 51. Re2 {[%emt 0:00:16]} Rd6 {[%emt 0:00:31]} 52. Kf2 {[%emt 0:00:33]} Rd2 {[%emt 0:00:59]} 1/2-1/2

[Event "23rd Alekhine Master 2019"]
[Site "Voronezh"]
[Date "2019.06.18"]
[Round "6.5"]
[White "Maiorov, Nikita"]
[Black "Shariyazdanov, Andrey"]
[Result "1/2-1/2"]
[ECO "E16"]
[WhiteElo "2527"]
[BlackElo "2526"]
[Annotator "ChessBase"]
[PlyCount "80"]
[EventDate "2019.06.12"]
[EventType "swiss"]
[EventCountry "RUS"]
[SourceTitle "playchess.com"]
[Source "ChessBase"]
[SourceQuality "1"]
[TimeControl "40/5400+30:1800+30"]

1. d4 {[%emt 0:04:07]} Nf6 {[%emt 0:00:00]} 2. c4 {[%emt 0:00:03]} e6 {[%emt 0:00:00]} 3. Nf3 {[%emt 0:00:11]} b6 {[%emt 0:00:05]} 4. g3 {[%emt 0:04:06]} Bb7 {[%emt 0:01:01]} 5. Bg2 {[%emt 0:00:08]} Bb4+ {[%emt 0:00:28]} 6. Bd2 {[%emt 0:00:14]} Be7 {[%emt 0:00:18]} 7. O-O {[%emt 0:00:29]} O-O {[%emt 0:00:33]} 8. Nc3 {[%emt 0:06:14]} c6 {[%emt 0:01:22]} 9. Qb3 {[%emt 0:07:17]} d5 {[%emt 0:01:21]} 10. Rac1 {[%emt 0:01:15]} Ne4 {[%emt 0:15:43]} 11. Bf4 {[%emt 0:17:25]} dxc4 {[%emt 0:02:19]} 12. Qxc4 {[%emt 0:00:07]} Ba6 {[%emt 0:00:05]} 13. Qb3 {[%emt 0:00:16]} Nxc3 {[%emt 0:00:09]} 14. bxc3 {[%emt 0:05:35]} Bxe2 {[%emt 0:01:13]} 15. Rfe1 {[%emt 0:00:03]} Bxf3 {[%emt 0:10:14]} 16. Bxf3 {[%emt 0:00:06]} Bd6 {[%emt 0:00:39]} 17. Be3 {[%emt 0:03:27]} Qc7 {[%emt 0:03:12]} 18. c4 {[%emt 0:06:08]} Nd7 {[%emt 0:00:30]} 19. c5 {[%emt 0:00:08]} bxc5 {[%emt 0:00:07]} 20. dxc5 {[%emt 0:00:23]} Be7 {[%emt 0:00:27]} 21. Bf4 {[%emt 0:04:16]} e5 {[%emt 0:02:06]} 22. Be3 {[%emt 0:00:30]} Rab8 {[%emt 0:01:06]} 23. Qc4 {[%emt 0:02:59]} Nf6 {[%emt 0:03:53]} 24. Bg5 {[%emt 0:06:09]} Nd5 {[%emt 0:01:22]} 25. Bxe7 {[%emt 0:02:09]} Nxe7 {[%emt 0:00:27]} 26. Qe4 {[%emt 0:00:09]} f6 {[%emt 0:01:03]} 27. Qc4+ {[%emt 0:03:01]} Kh8 {[%emt 0:00:39]} 28. Qe6 {[%emt 0:01:09]} Rbe8 {[%emt 0:33:48]} 29. Red1 {[%emt 0:11:02]} Nd5 {[%emt 0:00:37]} 30. Qd6 {[%emt 0:00:05]} e4 {[%emt 0:00:42]} 31. Rxd5 {[%emt 0:01:55]} Qc8 {[%emt 0:00:18]} 32. Rdd1 {[%emt 0:02:44]} exf3 {[%emt 0:00:10]} 33. Qf4 {[%emt 0:00:22]} Re5 {[%emt 0:05:32]} 34. Qxf3 {[%emt 0:00:18]} Rfe8 {[%emt 0:00:32]} 35. Kg2 {[%emt 0:00:42]} Rf5 {[%emt 0:01:03]} 36. Qd3 {[%emt 0:00:16]} Rd5 {[%emt 0:00:10]} 37. Qf3 {[%emt 0:00:06]} Rf5 {[%emt 0:00:03]} 38. Qd3 {[%emt 0:00:06]} Rd5 {[%emt 0:00:03]} 39. Qf3 {[%emt 0:00:04]} Rf5 {[%emt 0:00:05]} 40. Qd3 {[%emt 0:00:00]} Rd5 1/2-1/2

[Event "23rd Alekhine Master 2019"]
[Site "Voronezh"]
[Date "2019.06.18"]
[Round "6.6"]
[White "Kryakvin, Dmitry"]
[Black "Belyakov, Bogdan"]
[Result "1-0"]
[ECO "A10"]
[WhiteElo "2586"]
[BlackElo "2483"]
[Annotator "ChessBase"]
[PlyCount "115"]
[EventDate "2019.06.12"]
[EventType "swiss"]
[EventCountry "RUS"]
[SourceTitle "playchess.com"]
[Source "ChessBase"]
[SourceQuality "1"]
[TimeControl "40/5400+30:1800+30"]

1. c4 {[%emt 0:00:00]} g6 {[%emt 0:00:04]} 2. g3 {[%emt 0:00:00]} Bg7 {[%emt 0:00:08]} 3. Bg2 {[%emt 0:00:00]} Nf6 {[%emt 0:01:05]} 4. Nc3 {[%emt 0:00:14]} O-O {[%emt 0:00:38]} 5. e3 {[%emt 0:00:20]} c6 {[%emt 0:00:14]} 6. d4 {[%emt 0:03:34]} d5 {[%emt 0:00:44]} 7. Qb3 {[%emt 0:13:55]} e5 {[%emt 0:14:45]} 8. dxe5 {[%emt 0:11:14]} Nfd7 {[%emt 0:01:49]} 9. cxd5 {[%emt 0:02:43]} Nxe5 {[%emt 0:00:38]} 10. Nf3 {[%emt 0:03:06]} Nd3+ {[%emt 0:02:25]} 11. Ke2 {[%emt 0:05:49]} Nc5 {[%emt 0:01:10]} 12. Qd1 {[%emt 0:07:14]} b6 {[%emt 0:03:15]} 13. Kf1 {[%emt 0:00:39]} cxd5 {[%emt 0:04:13]} 14. Nd4 {[%emt 0:00:40]} Bb7 {[%emt 0:02:04]} 15. Kg1 {[%emt 0:03:30]} Nba6 {[%emt 0:07:22]} 16. Bd2 {[%emt 0:02:43]} Ne4 {[%emt 0:06:02]} 17. Be1 {[%emt 0:01:37]} Nac5 {[%emt 0:01:23]} 18. Rc1 {[%emt 0:00:53]} Rc8 {[%emt 0:03:33]} 19. Nce2 {[%emt 0:01:03]} Qf6 {[%emt 0:06:22]} 20. Nf4 {[%emt 0:00:55]} h5 {[%emt 0:04:14]} 21. h4 {[%emt 0:00:37]} Nd7 {[%emt 0:01:27]} 22. Rxc8 {[%emt 0:02:14]} Rxc8 {[%emt 0:01:35]} 23. Bh3 {[%emt 0:00:53]} Rd8 {[%emt 0:02:18]} 24. Kg2 {[%emt 0:02:28]} Ne5 {[%emt 0:00:54]} 25. a4 {[%emt 0:07:20]} Bh6 {[%emt 0:02:25]} 26. b3 {[%emt 0:01:20]} Bxf4 {[%emt 0:01:03]} 27. gxf4 {[%emt 0:02:26]} Nc6 {[%emt 0:00:15]} 28. f3 {[%emt 0:01:01]} Nxd4 {[%emt 0:02:02]} 29. Qxd4 {[%emt 0:00:44]} Qxd4 {[%emt 0:00:36]} 30. exd4 {[%emt 0:00:04]} Nd6 {[%emt 0:06:02]} 31. Bb4 {[%emt 0:00:06]} Bc8 {[%emt 0:00:27]} 32. Bxc8 {[%emt 0:02:55]} Nxc8 {[%emt 0:00:07]} 33. Rc1 {[%emt 0:01:57]} Nd6 {[%emt 0:01:50]} 34. Bxd6 {[%emt 0:03:14]} Rxd6 {[%emt 0:00:08]} 35. Rc7 {[%emt 0:00:51]} a5 {[%emt 0:00:08]} 36. f5 {[%emt 0:00:26]} Kg7 {[%emt 0:05:04]} 37. Kg3 {[%emt 0:01:35]} Kf6 {[%emt 0:03:07]} 38. Kf4 {[%emt 0:01:29]} gxf5 {[%emt 0:00:06]} 39. Rb7 {[%emt 0:03:12]} Rc6 {[%emt 0:01:55]} 40. Rb8 {[%emt 0:00:00]} Rd6 {[%emt 0:00:00]} 41. Rh8 {[%emt 0:03:47]} Kg7 {[%emt 0:09:49]} 42. Rxh5 {[%emt 0:02:45]} Rc6 {[%emt 0:00:14]} 43. Rg5+ {[%emt 0:00:31]} Kh8 {[%emt 0:04:43]} 44. Rxf5 {[%emt 0:00:36]} Rc3 {[%emt 0:00:05]} 45. Rxf7 {[%emt 0:00:10]} Rxb3 {[%emt 0:00:24]} 46. Kg5 {[%emt 0:10:55]} Kg8 {[%emt 0:03:39]} 47. Kg6 {[%emt 0:00:18]} Rb1 {[%emt 0:10:22]} 48. Rf5 {[%emt 0:04:32]} Rb4 {[%emt 0:01:37]} 49. h5 {[%emt 0:01:21]} Rb1 {[%emt 0:00:21]} 50. Rxd5 {[%emt 0:01:52]} Rg1+ {[%emt 0:00:39]} 51. Rg5 {[%emt 0:01:38]} Rf1 {[%emt 0:00:17]} 52. Rf5 {[%emt 0:01:47]} Rg1+ {[%emt 0:00:07]} 53. Kf6 {[%emt 0:00:17]} Ra1 {[%emt 0:00:35]} 54. d5 {[%emt 0:02:02]} b5 {[%emt 0:00:26]} 55. axb5 {[%emt 0:00:35]} a4 {[%emt 0:00:06]} 56. Rf4 {[%emt 0:00:36]} a3 {[%emt 0:00:13]} 57. Ra4 {[%emt 0:00:20]} a2 {[%emt 0:00:06]} 58. f4 {[%emt 0:00:51]} 1-0

[Event "23rd Alekhine Master 2019"]
[Site "Voronezh"]
[Date "2019.06.18"]
[Round "6.7"]
[White "Rozum, Ivan"]
[Black "Potapov, Pavel"]
[Result "1-0"]
[ECO "A04"]
[WhiteElo "2572"]
[BlackElo "2479"]
[Annotator "ChessBase"]
[PlyCount "65"]
[EventDate "2019.06.12"]
[EventType "swiss"]
[EventCountry "RUS"]
[SourceTitle "playchess.com"]
[Source "ChessBase"]
[SourceQuality "1"]
[TimeControl "40/5400+30:1800+30"]

1. Nf3 {[%emt 0:04:03]} f5 {[%emt 0:00:00]} 2. d3 {[%emt 0:00:25]} Nc6 {[%emt 0:00:24]} 3. d4 {[%emt 0:00:13]} e6 {[%emt 0:00:24]} 4. g3 {[%emt 0:00:11]} Nf6 {[%emt 0:00:39]} 5. Bg2 {[%emt 0:00:06]} d6 {[%emt 0:11:04]} 6. c4 {[%emt 0:01:17]} Be7 {[%emt 0:00:51]} 7. d5 {[%emt 0:01:11]} Ne5 {[%emt 0:04:04]} 8. Nd4 {[%emt 0:00:21]} O-O {[%emt 0:13:00]} 9. Qc2 {[%emt 0:00:25]} exd5 {[%emt 0:17:58]} 10. cxd5 {[%emt 0:00:15]} Ne8 {[%emt 0:02:30]} 11. O-O {[%emt 0:02:07]} Bd7 {[%emt 0:00:32]} 12. Nc3 {[%emt 0:01:04]} Kh8 {[%emt 0:00:49]} 13. f4 {[%emt 0:09:41]} Ng4 {[%emt 0:02:54]} 14. h3 {[%emt 0:01:59]} Nh6 {[%emt 0:02:59]} 15. e4 {[%emt 0:01:15]} c6 {[%emt 0:05:40]} 16. Kh2 {[%emt 0:20:36]} Rc8 {[%emt 0:03:38]} 17. e5 {[%emt 0:07:21]} cxd5 {[%emt 0:00:35]} 18. e6 {[%emt 0:00:11]} Bc6 {[%emt 0:00:23]} 19. Qd3 {[%emt 0:04:00]} Nf6 {[%emt 0:01:17]} 20. b4 {[%emt 0:00:37]} Ne4 {[%emt 0:10:51]} 21. b5 {[%emt 0:01:24]} Bf6 {[%emt 0:00:10]} 22. bxc6 {[%emt 0:03:34]} bxc6 {[%emt 0:00:13]} 23. Bb2 {[%emt 0:02:20]} Re8 {[%emt 0:01:26]} 24. Rab1 {[%emt 0:02:43]} Qe7 {[%emt 0:06:45]} 25. Rfe1 {[%emt 0:06:09]} Rc7 {[%emt 0:05:16]} 26. Rbc1 {[%emt 0:03:50]} Rec8 {[%emt 0:01:23]} 27. Re2 {[%emt 0:02:49]} Bxd4 {[%emt 0:01:06]} 28. Qxd4 {[%emt 0:00:04]} Ng8 {[%emt 0:03:09]} 29. g4 {[%emt 0:02:33]} Qxe6 {[%emt 0:00:18]} 30. Nxe4 {[%emt 0:01:12]} c5 {[%emt 0:01:00]} 31. gxf5 {[%emt 0:06:53]} cxd4 {[%emt 0:00:57]} 32. fxe6 {[%emt 0:00:08]} Rxc1 {[%emt 0:00:05]} 33. Nxd6 {[%emt 0:00:17]} 1-0

[Event "23rd Alekhine Master 2019"]
[Site "Voronezh"]
[Date "2019.06.18"]
[Round "6.8"]
[White "Savchenko, Boris"]
[Black "Rios, Cristhian Camilo"]
[Result "1-0"]
[ECO "E04"]
[WhiteElo "2567"]
[BlackElo "2513"]
[Annotator "ChessBase"]
[PlyCount "83"]
[EventDate "2019.06.12"]
[EventType "swiss"]
[EventCountry "RUS"]
[SourceTitle "playchess.com"]
[Source "ChessBase"]
[SourceQuality "1"]
[TimeControl "40/5400+30:1800+30"]

1. d4 {[%emt 0:10:57]} Nf6 {[%emt 0:00:08]} 2. c4 {[%emt 0:01:50]} e6 {[%emt 0:01:17]} 3. g3 {[%emt 0:00:10]} d5 {[%emt 0:01:59]} 4. Nf3 {[%emt 0:00:15]} dxc4 {[%emt 0:01:17]} 5. Bg2 {[%emt 0:01:22]} a6 {[%emt 0:01:41]} 6. O-O {[%emt 0:01:14]} Nc6 {[%emt 0:03:43]} 7. Bg5 {[%emt 0:03:00]} Be7 {[%emt 0:04:09]} 8. e3 {[%emt 0:05:17]} Rb8 {[%emt 0:09:15]} 9. Qc1 {[%emt 0:19:38]} b5 {[%emt 0:07:41]} 10. b3 {[%emt 0:01:44]} Na5 {[%emt 0:06:10]} 11. Nbd2 {[%emt 0:04:48]} h6 {[%emt 0:09:31]} 12. Bf4 {[%emt 0:09:06]} Nd5 {[%emt 0:08:00]} 13. bxc4 {[%emt 0:01:43]} Nxf4 {[%emt 0:02:10]} 14. gxf4 {[%emt 0:00:48]} c5 {[%emt 0:01:09]} 15. dxc5 {[%emt 0:02:28]} O-O {[%emt 0:03:24]} 16. Ne5 {[%emt 0:03:36]} Bxc5 {[%emt 0:03:45]} 17. Nb3 {[%emt 0:13:31]} Nxb3 {[%emt 0:03:32]} 18. axb3 {[%emt 0:00:10]} Qh4 {[%emt 0:00:29]} 19. Nc6 {[%emt 0:05:31]} Rb6 {[%emt 0:12:47]} 20. b4 {[%emt 0:06:29]} Bb7 {[%emt 0:01:10]} 21. cxb5 {[%emt 0:01:14]} Bxb4 {[%emt 0:00:56]} 22. bxa6 {[%emt 0:00:16]} Rxa6 {[%emt 0:00:52]} 23. Rxa6 {[%emt 0:00:19]} Bxa6 {[%emt 0:00:08]} 24. Nxb4 {[%emt 0:03:17]} Bxf1 {[%emt 0:00:11]} 25. Qxf1 {[%emt 0:00:20]} Rd8 {[%emt 0:02:35]} 26. Nc6 {[%emt 0:01:58]} Rd2 {[%emt 0:00:50]} 27. Ne5 {[%emt 0:00:40]} Ra2 {[%emt 0:01:14]} 28. h3 {[%emt 0:01:16]} Qd8 {[%emt 0:02:35]} 29. Bc6 {[%emt 0:01:00]} Qa5 {[%emt 0:04:24]} 30. Kh2 {[%emt 0:00:27]} Qc3 {[%emt 0:02:55]} 31. Qg2 {[%emt 0:00:28]} Qe1 {[%emt 0:02:59]} 32. Kg3 {[%emt 0:00:16]} Ra3 {[%emt 0:01:47]} 33. Kh2 {[%emt 0:00:45]} Ra2 {[%emt 0:00:07]} 34. Kg3 {[%emt 0:00:23]} Ra3 {[%emt 0:00:08]} 35. Kg4 {[%emt 0:00:21]} f6 {[%emt 0:00:57]} 36. Nf3 {[%emt 0:00:50]} Qd1 {[%emt 0:01:18]} 37. Kh4 {[%emt 0:00:30]} Qd6 {[%emt 0:00:38]} 38. Nd4 {[%emt 0:00:17]} g5+ {[%emt 0:00:35]} 39. Kh5 {[%emt 0:00:41]} Kf7 {[%emt 0:00:30]} 40. Nb5 {[%emt 0:00:00]} Qd1+ {[%emt 0:00:00]} 41. Bf3 {[%emt 0:02:01]} Qd3 {[%emt 0:16:36]} 42. Nxa3 {[%emt 0:00:37]} 1-0

[Event "23rd Alekhine Master 2019"]
[Site "Voronezh"]
[Date "2019.06.18"]
[Round "6.9"]
[White "Goganov, Aleksey"]
[Black "Kabanov, Nikolai"]
[Result "1-0"]
[ECO "E71"]
[WhiteElo "2559"]
[BlackElo "2455"]
[Annotator "ChessBase"]
[PlyCount "47"]
[EventDate "2019.06.12"]
[EventType "swiss"]
[EventCountry "RUS"]
[SourceTitle "playchess.com"]
[Source "ChessBase"]
[SourceQuality "1"]
[TimeControl "40/5400+30:1800+30"]

1. d4 {[%emt 0:00:00]} Nf6 {[%emt 0:02:31]} 2. c4 {[%emt 0:00:00]} d6 {[%emt 0:00:22]} 3. Nc3 {[%emt 0:00:00]} g6 {[%emt 0:00:09]} 4. e4 {[%emt 0:00:00]} Bg7 {[%emt 0:00:05]} 5. h3 {[%emt 0:00:00]} O-O {[%emt 0:00:16]} 6. Be3 {[%emt 0:00:04]} e5 {[%emt 0:02:53]} 7. d5 {[%emt 0:00:36]} a5 {[%emt 0:00:24]} 8. g4 {[%emt 0:00:11]} Na6 {[%emt 0:00:40]} 9. Nge2 {[%emt 0:00:21]} h5 {[%emt 0:06:35]} 10. g5 {[%emt 0:12:54]} Nd7 {[%emt 0:05:59]} 11. Ng3 {[%emt 0:04:51]} Ndc5 {[%emt 0:07:34]} 12. Nxh5 {[%emt 0:10:24]} gxh5 {[%emt 0:00:30]} 13. Qxh5 {[%emt 0:00:05]} Nb4 {[%emt 0:02:04]} 14. O-O-O {[%emt 0:06:50]} Bd7 {[%emt 0:05:39]} 15. Rg1 {[%emt 0:04:05]} Qe7 {[%emt 0:03:18]} 16. Kb1 {[%emt 0:11:43]} c6 {[%emt 0:12:22]} 17. a3 {[%emt 0:08:23]} Nba6 {[%emt 0:00:26]} 18. Be2 {[%emt 0:00:34]} Nb3 {[%emt 0:12:00]} 19. Bg4 {[%emt 0:02:35]} Nd4 {[%emt 0:00:38]} 20. Bxd7 {[%emt 0:05:00]} Qxd7 {[%emt 0:00:08]} 21. g6 {[%emt 0:00:20]} fxg6 {[%emt 0:00:16]} 22. Rxg6 {[%emt 0:00:08]} Nc7 {[%emt 0:02:25]} 23. Rdg1 {[%emt 0:00:13]} Rf7 {[%emt 0:00:19]} 24. Rh6 {[%emt 0:00:37]} 1-0